bitfinex-derivatives/quotes_SOLF0:USTF0_20250821
["timestamp","ask_amount","ask_price","bid_price","bid_amount"]
[1755788173668,2.94849441,185.02,184.94,2.8]
[1755788174070,2.94849441,185.02,184.95,5.4073]
[1755788174270,2.94849441,185.02,184.94,2.8]
[1755788174675,2.94849441,185.02,184.96,5.4071]
[1755788174976,2.94849441,185.04,184.96,2.8]
[1755788175178,2.94849441,185.04,184.98,5.4064]
[1755788175367,3.0,185.03,184.94,4.53663531]
[1755788175675,2.94849441,185.01,184.95,137.18]
[1755788176169,3.0,185.03,184.95,137.18]
[1755788176370,3.0,185.03,184.97,5.4068]
[1755788176570,3.0,185.03,184.95,137.18]
[1755788176770,3.0,185.03,184.97,5.4066]
[1755788176969,2.94849441,185.05,184.97,2.8]
[1755788177975,2.94849441,185.05,184.98,5.4063]
[1755788178174,2.94849441,185.05,184.97,2.8]
[1755788178675,3.0,185.06,184.97,2.8]
[1755788178976,2.94849441,185.09,184.98,10.27512972]
[1755788179178,2.94849441,185.09,185.02,5.4053]
[1755788179475,2.94849441,185.09,184.99,2.79]
[1755788179870,3.0,185.06,184.98,4.53663531]
[1755788180176,2.94849441,185.01,184.97,2.79]
[1755788180376,2.94849441,185.03,184.98,2.79]
[1755788180566,2.94849441,185.03,184.96,2.79]
[1755788180771,2.94849441,185.03,184.97,4.53663531]
[1755788182174,2.94849441,185.03,184.97,9.94333531]
[1755788182772,2.94849441,185.05,184.98,7.32663531]
[1755788183176,2.97,185.12,184.99,2.94849441]
[1755788183377,2.94849441,185.1,185.01,4.53663531]
[1755788183576,2.94849441,185.1,185.02,144.48663531]
[1755788183778,5.91849441,185.12,185.02,144.48663531]
[1755788184775,2.94849441,185.12,185.03,10.27512972]
[1755788184976,5.91849441,185.1,185.03,4.53663531]
[1755788185183,2.94849441,185.08,185.02,137.16]
[1755788186484,7.76952634,185.1,185.02,137.16]
[1755788187685,4.79952634,185.13,185.02,144.48663531]
[1755788188079,2.97,185.12,185.02,139.95]
[1755788188596,2.97,185.09,185.02,2.79]
[1755788189689,4.79952634,185.1,185.02,7.32663531]
[1755788189882,4.79952634,185.1,185.02,8.1953]
[1755788190084,7.76952634,185.13,185.02,7.32663531]
[1755788190487,7.76952634,185.13,185.02,12.73193531]
[1755788190684,7.76952634,185.13,185.02,7.32663531]
[1755788190888,7.76952634,185.13,185.02,2.79]
[1755788191089,7.76952634,185.13,185.02,8.1953]
[1755788191388,7.76952634,185.13,185.03,2.79]
[1755788191593,7.76952634,185.13,185.03,8.1949]
[1755788192398,7.76952634,185.13,185.03,2.79]
[1755788192794,7.76952634,185.13,185.03,4.53782765]
[1755788193000,4.79952634,185.16,185.04,4.53782765]
[1755788193300,4.79952634,185.16,185.07,5.4039]
[1755788193998,4.79952634,185.16,185.06,5.4042]
[1755788194702,2.97,185.15,185.05,2.79]
[1755788195001,2.97,185.15,185.05,8.1944]
[1755788195202,2.97,185.15,185.05,2.79]
[1755788195402,2.97,185.15,185.05,139.89]
[1755788196702,2.97,185.15,185.05,145.2944]
[1755788197902,2.97,185.15,185.05,139.89]
[1755788198404,2.97,185.15,185.05,145.2945]
[1755788198603,2.97,185.15,185.05,139.89]
[1755788199896,2.97,185.15,185.06,2.79]
[1755788200796,0.19184,185.17,185.07,4.79952634]
[1755788201103,4.79952634,185.14,185.08,2.79]
[1755788201301,4.79952634,185.14,185.07,137.06]
[1755788201302,2.97,185.13,185.07,137.06]
[1755788202703,4.79952634,185.11,185.04,2.79]
[1755788203698,3.16184,185.17,185.04,2.79]
[1755788204002,7.96136634,185.17,185.04,2.79]
[1755788204204,7.96136634,185.17,185.07,2.79]
[1755788204409,2.97,185.16,185.07,2.79]
[1755788206411,5.91389534,185.13,185.05,137.04]
[1755788206608,5.91389534,185.13,185.04,2.79]
[1755788206901,2.94389534,185.09,185.01,137.02]
[1755788207104,2.94389534,185.09,185.02,2.79]
[1755788207299,2.97,185.14,185.02,2.79]
[1755788207499,2.94389534,185.11,185.02,2.79]
[1755788207706,5.91389534,185.11,185.02,2.79]
[1755788208006,5.91389534,185.11,185.03,5.405]
[1755788208505,5.91389534,185.11,185.05,2.79]
[1755788208903,2.94389534,185.11,185.05,2.79]
[1755788210807,2.94389534,185.13,185.05,8.1943]
[1755788211312,2.94389534,185.13,185.06,5.4042]
[1755788211913,2.94389534,185.13,185.05,2.79]
[1755788212407,2.94389534,185.13,185.05,8.1945]
[1755788212810,2.94389534,185.11,185.05,2.79]
[1755788215509,2.94389534,185.12,185.05,2.79]
[1755788216813,3.13573534,185.17,185.05,2.79]
[1755788217215,3.13573534,185.17,185.04,2.94389534]
[1755788217416,3.13573534,185.17,185.05,2.8]
[1755788217817,2.97,185.16,185.05,2.8]
[1755788218521,2.94389534,185.15,185.06,2.94389534]
[1755788218918,2.94389534,185.15,185.07,2.8]
[1755788221515,2.97,185.16,185.07,2.8]
[1755788222720,5.91389534,185.14,185.07,2.8]
[1755788222919,5.91389534,185.14,185.02,5.74389534]
[1755788222920,2.97,185.13,185.02,5.74389534]
[1755788223121,2.97,185.13,185.04,136.96]
[1755788223521,2.97,185.13,185.05,2.8]
[1755788223820,2.94389534,185.1,185.04,136.96]
[1755788224520,2.94389534,185.07,185.01,2.8]
[1755788225422,2.94389534,185.05,184.98,136.94]
[1755788225726,2.94389534,185.03,184.97,366.0]
[1755788226116,5.91389534,185.03,184.97,363.2]
[1755788226623,2.94389534,185.01,184.97,363.2]
[1755788226824,2.94389534,185.01,184.94,136.94]
[1755788230425,5.91389534,184.99,184.94,139.74]
[1755788230626,2.94389534,184.97,184.94,139.74]
[1755788230920,2.94389534,184.97,184.94,2.8]
[1755788231724,5.91389534,184.97,184.92,2.8]
[1755788231926,2.94389534,184.95,184.9,136.94]
[1755788232126,5.91389534,184.95,184.9,139.74]
[1755788232629,2.97,184.98,184.91,2.8]
[1755788232823,5.91389534,184.96,184.91,2.8]
[1755788233025,5.91389534,184.96,184.92,2.8]
[1755788233422,2.94389534,184.96,184.92,2.8]
[1755788233620,2.94389534,184.96,184.94,2.8]
[1755788233926,2.94389534,185.04,184.94,2.8]
[1755788233927,2.94389534,185.02,184.94,5.4076]
[1755788234125,2.94389534,185.02,184.95,2.8]
[1755788234531,2.94389534,185.02,184.95,8.2072]
[1755788235130,2.94389534,185.02,184.95,2.8]
[1755788236132,2.94389534,184.98,184.91,2.8]
[1755788236527,2.97,185.01,184.91,2.8]
[1755788236727,2.94389534,185.0,184.91,2.8]
[1755788237131,2.97,185.01,184.91,2.8]
[1755788237334,5.91389534,185.01,184.91,2.8]
[1755788237833,5.91389534,185.01,184.95,5.4072]
[1755788238334,5.91389534,185.01,184.94,2.8]
[1755788239235,2.94389534,185.02,184.94,2.8]
[1755788239840,2.94389534,185.02,184.95,5.4072]
[1755788240136,2.94389534,185.04,184.95,2.8]
[1755788240336,2.97,185.05,184.99,2.8]
[1755788241241,2.94389534,185.04,184.97,136.96]
[1755788242139,2.97,185.05,184.99,2.8]
[1755788246040,2.94389534,185.02,184.95,136.94]
[1755788246640,3.02,184.99,184.95,136.94]
[1755788246938,2.94389534,185.02,184.97,2.8]
[1755788247142,2.94389534,185.02,184.98,2.8]
[1755788249248,2.94389534,185.04,184.98,2.8]
[1755788250542,3.02,185.06,184.98,8.2066]
[1755788250543,2.94389534,185.05,184.98,8.2066]
[1755788251247,363.18,185.11,185.0,2.8]
[1755788251248,2.94389534,185.07,185.0,2.8]
[1755788252946,2.94389534,185.03,184.96,2.8]
[1755788253842,2.94389534,185.05,184.96,2.8]
[1755788254142,2.94389534,185.05,184.98,2.8]
[1755788254547,5.96389534,185.05,184.98,2.8]
[1755788256650,2.94389534,185.07,184.98,2.8]
[1755788256944,2.94389534,185.09,185.01,2.8]
[1755788257646,2.94389534,185.09,185.01,8.2056]
[1755788257950,2.94389534,185.11,185.02,2.94389534]
[1755788258152,2.94389534,185.11,185.03,8.2049]
[1755788258350,2.94389534,185.09,184.98,2.8]
[1755788258542,2.94389534,185.07,185.0,2.8]
[1755788258844,2.94389534,185.09,185.01,2.8]
[1755788260346,5.96389534,185.09,185.01,2.8]
[1755788260849,3.02,185.09,185.01,8.2055]
[1755788261042,3.02,185.09,185.01,2.8]
[1755788263057,5.96389534,185.09,185.01,2.8]
[1755788263344,0.18933,185.12,185.01,5.74389534]
[1755788263345,2.94389534,185.11,185.01,5.74389534]
[1755788263545,3.20933,185.12,185.04,2.8]
[1755788264153,3.20933,185.12,185.05,2.94389534]
[1755788264542,3.20933,185.12,185.06,5.404]
[1755788264847,3.20933,185.12,185.05,2.94389534]
[1755788265150,3.20933,185.12,185.08,5.4034]
[1755788265151,0.18933,185.12,185.08,5.4034]
[1755788265544,0.18933,185.12,185.09,2.8]
[1755788265743,0.18933,185.12,185.08,136.82]
[1755788265948,0.18933,185.12,185.08,139.62]
[1755788266252,0.18933,185.12,185.08,2.8]
[1755788266453,3.20933,185.12,185.08,2.8]
[1755788267552,0.18933,185.12,185.08,2.8]
[1755788268549,0.18933,185.12,185.07,2.8]
[1755788268759,0.18933,185.12,185.06,136.8]
[1755788268760,0.18933,185.12,185.09,2.8]
[1755788268956,0.18933,185.12,185.1,2.8]
[1755788270454,0.18933,185.12,185.06,142.54389534]
[1755788270654,0.18933,185.12,185.07,136.76]
[1755788270854,0.18933,185.12,185.07,139.56]
[1755788271050,0.18933,185.12,185.09,2.8]
[1755788271553,0.18933,185.12,185.08,2.8]
[1755788272054,0.18933,185.12,185.08,5.74389534]
[1755788272254,0.18933,185.12,185.1,2.94389534]
[1755788272450,0.18933,185.12,185.11,2.8]
[1755788272650,0.18933,185.12,185.11,5.4027]
[1755788272858,5.78389534,185.22,185.11,3.33]
[1755788273061,5.78389534,185.22,185.13,2.79]
[1755788273348,5.78389534,185.22,185.13,8.1921]
[1755788273752,2.84,185.25,185.16,2.79]
[1755788274057,5.78389534,185.25,185.16,2.79]
[1755788274553,5.78389534,185.25,185.16,8.1912]
[1755788274758,2.84,185.25,185.16,8.1912]
[1755788274957,2.94389534,185.24,185.16,8.1912]
[1755788275156,2.94389534,185.24,185.16,2.79]
[1755788276052,2.84,185.25,185.17,2.79]
[1755788278159,2.94389534,185.21,185.1,2.79]
[1755788278359,2.94389534,185.21,185.11,139.45]
[1755788278561,2.94389534,185.21,185.12,2.79]
[1755788278761,5.78389534,185.23,185.13,2.79]
[1755788279263,5.78389534,185.23,185.14,5.4018]
[1755788279662,5.78389534,185.23,185.15,5.4013]
[1755788279862,5.78389534,185.23,185.16,2.79]
[1755788280061,2.94389534,185.25,185.16,2.79]
[1755788280265,2.94389534,185.25,185.17,5.4007]
[1755788280462,2.94389534,185.25,185.16,5.73389534]
[1755788280664,2.94389534,185.25,185.16,142.39389534]
[1755788281365,2.94389534,185.25,185.18,5.4005]
[1755788281559,5.78389534,185.27,185.17,2.79]
[1755788281865,2.84,185.27,185.2,8.19]
[1755788282068,5.78389534,185.27,185.2,2.79]
[1755788282467,2.94389534,185.25,185.16,2.79]
[1755788282760,2.94389534,185.25,185.13,362.98]
[1755788282761,2.84,185.24,185.13,362.98]
[1755788282963,2.94389534,185.19,185.13,362.98]
[1755788283369,2.94389534,185.17,185.13,362.98]
[1755788283972,5.78389534,185.17,185.13,362.98]
[1755788284469,2.94389534,185.14,185.07,2.79]
[1755788284660,2.94389534,185.14,185.08,136.6]
[1755788284858,2.94389534,185.14,185.07,2.79]
[1755788284859,2.94389534,185.11,185.07,2.79]
[1755788285472,2.94389534,185.13,185.08,2.79]
[1755788285679,2.94389534,185.13,185.07,2.79]
[1755788286083,2.84,185.14,185.07,2.79]
[1755788286374,2.94389534,185.15,185.07,2.79]
[1755788287382,2.94389534,185.13,185.07,2.79]
[1755788287583,2.84,185.12,185.08,136.6]
[1755788287984,2.94389534,185.22,185.03,362.92]
[1755788287985,5.78389534,185.11,185.03,365.71]
[1755788288179,5.78389534,185.11,185.04,136.6]
[1755788288380,2.94389534,185.09,185.03,365.71]
[1755788288883,2.94389534,185.09,185.03,499.52]
[1755788289683,2.94389534,185.09,185.03,362.92]
[1755788290390,4.79941025,185.1,185.03,362.92]
[1755788290687,2.84,185.11,185.03,362.92]
[1755788291489,4.79941025,185.09,185.03,362.92]
[1755788291689,2.84,185.07,185.03,362.92]
[1755788291891,2.84,185.07,185.02,136.6]
[1755788292091,2.84,185.06,185.02,136.6]
[1755788292791,2.84,185.05,185.02,136.6]
[1755788292992,2.84,185.02,184.89,2.79]
[1755788293196,4.79941025,184.97,184.89,8.1992]
[1755788293494,4.79941025,184.97,184.89,139.39]
[1755788294888,2.84,184.99,184.89,139.39]
[1755788295094,7.63941025,184.99,184.89,139.39]
[1755788295302,2.84,184.99,184.89,139.39]
[1755788295483,7.63941025,184.99,184.89,139.39]
[1755788295790,7.63941025,184.99,184.91,5.4085]
[1755788295993,7.63941025,184.99,184.9,2.79]
[1755788296191,2.84,184.99,184.9,2.79]
[1755788296392,4.79941025,185.02,184.9,2.79]
[1755788296785,4.79941025,185.02,184.93,2.79]
[1755788297095,7.63941025,185.03,184.93,2.79]
[1755788297303,7.63941025,185.03,184.94,5.4076]
[1755788297794,2.84,185.03,184.93,2.79]
[1755788297992,7.63941025,185.03,184.93,2.79]
[1755788298588,7.63941025,185.07,184.94,2.79]
[1755788298992,7.63941025,185.07,184.97,5.4068]
[1755788299491,2.84,185.03,184.94,2.79]
[1755788299694,2.84,185.07,184.94,2.79]
[1755788299995,7.63941025,185.07,184.94,2.79]
[1755788300290,2.84,185.03,184.94,2.79]
[1755788301491,2.84,185.03,184.94,8.1977]
[1755788301696,2.84,185.03,184.94,2.79]
[1755788302593,4.79941025,185.06,184.95,2.79]
[1755788303098,2.94,185.05,184.96,5.4071]
[1755788303297,2.94,185.05,184.95,2.79]
[1755788303994,8.68025593,185.09,184.95,2.79]
[1755788304494,2.94,185.08,184.95,2.79]
[1755788305198,2.94,185.08,185.01,8.1956]
[1755788305696,7.73941025,185.12,185.01,2.79]
[1755788305998,2.94,185.12,185.01,2.79]
[1755788306299,2.94,185.15,185.05,2.79]
[1755788308597,2.94,185.15,185.06,5.404]
[1755788308797,2.94,185.15,185.05,2.79]
[1755788309301,2.94,185.15,185.05,8.1944]
[1755788309799,2.94,185.15,185.05,2.79]
[1755788310693,2.94,185.13,185.05,2.79]
[1755788312489,0.94051512,185.16,185.01,2.79]
[1755788312490,2.94,185.1,185.01,2.79]
[1755788313000,2.94,185.1,185.03,5.405]
[1755788313704,2.94,185.1,185.02,5.4053]
[1755788314001,2.94,185.1,185.01,2.79]
[1755788315292,2.94,185.1,185.02,5.4053]
[1755788316000,2.94,185.1,185.01,8.1956]
[1755788316795,2.94,185.1,185.01,2.79]
[1755788316995,0.94051512,185.16,185.01,2.79]
[1755788316996,2.94,185.08,185.01,2.79]
[1755788317392,2.94,185.08,184.97,136.58]
[1755788317597,2.94,185.08,184.98,8.1964]
[1755788317998,2.94,185.08,184.98,2.79]
[1755788318199,2.94,185.08,184.99,5.406]
[1755788318501,2.94,185.12,185.0,2.79]
[1755788318907,2.94,185.12,185.02,5.4052]
[1755788319103,2.94,185.12,185.03,2.79]
[1755788319598,2.94,185.12,185.04,5.4046]
[1755788319994,2.94,185.12,185.03,2.79]
[1755788320501,2.94,185.1,184.99,2.79]
[1755788320702,2.94,185.1,185.0,5.4059]
[1755788321104,2.94,185.1,184.99,2.79]
[1755788321309,2.94,185.07,184.99,2.79]
[1755788322007,2.94,185.07,184.98,136.58]
[1755788322305,2.94,185.04,184.98,136.58]
[1755788322900,2.94,185.04,184.95,2.79]
[1755788323097,7.73941025,185.04,184.95,2.79]
[1755788326002,2.94,185.0,184.91,2.79]
[1755788326501,7.73941025,185.0,184.91,2.79]
[1755788327202,7.73941025,185.0,184.91,8.1985]
[1755788327405,5.96823412,185.11,184.91,2.79]
[1755788327702,2.94,185.05,184.91,2.79]
[1755788327904,2.94,185.05,184.92,4.79941025]
[1755788328108,2.94,185.05,184.93,2.79]
[1755788328404,2.94,185.05,184.97,2.79]
[1755788328911,2.94,185.05,184.97,8.1968]
[1755788329103,2.94,185.05,184.97,2.79]
[1755788330501,2.94,185.05,184.94,2.79]
[1755788332213,2.94,185.05,184.97,2.79]
[1755788333114,4.79941025,185.1,184.99,2.79]
[1755788333305,2.86,185.12,184.99,2.79]
[1755788333612,2.86,185.12,185.01,2.79]
[1755788333808,4.79941025,185.1,185.01,2.79]
[1755788334213,2.86,185.09,185.01,2.79]
[1755788334615,4.79941025,185.07,184.97,2.79]
[1755788334816,2.86,185.06,184.97,2.79]
[1755788336410,10.76764437,185.13,184.93,363.26]
[1755788336411,2.86,185.03,184.93,366.05]
[1755788338516,2.86,185.03,184.94,2.79]
[1755788339622,2.86,185.03,184.94,8.1976]
[1755788340013,2.86,185.03,184.94,2.79]
[1755788344323,2.86,185.03,184.94,8.1976]
[1755788344821,2.86,185.03,184.94,2.79]
[1755788347126,2.86,185.03,184.94,8.1976]
[1755788348427,2.94750807,185.02,184.94,2.79]
[1755788348822,2.94750807,185.02,184.95,5.4071]
[1755788349423,2.94750807,185.02,184.94,2.79]
[1755788350126,2.94750807,185.02,184.96,5.407]
[1755788351628,2.94750807,185.02,184.94,2.79]
[1755788351629,2.94750807,185.02,184.97,5.4067]
[1755788351831,2.94750807,185.13,184.98,2.79]
[1755788351832,2.86,185.07,184.98,2.79]
[1755788352123,2.94750807,185.05,184.98,8.1963]
[1755788352730,2.94750807,185.05,184.98,2.79]
[1755788352931,5.80750807,185.03,184.98,2.79]
[1755788353131,5.80750807,185.01,184.94,2.79]
[1755788353327,2.94750807,185.0,184.94,2.79]
[1755788354028,2.86,185.01,184.94,2.79]
[1755788354423,2.86,185.01,184.95,5.4073]
[1755788355135,2.94750807,184.98,184.94,2.79]
[1755788355533,5.80750807,184.98,184.94,2.79]
[1755788356934,2.86,184.97,184.93,499.78]
[1755788357132,2.86,184.97,184.93,505.1879]
[1755788357431,2.86,184.97,184.93,507.9779]
[1755788358236,2.94750807,184.98,184.94,2.8]
[1755788358539,5.80750807,185.0,184.93,505.1879]
[1755788358738,5.80750807,184.98,184.94,2.8]
[1755788359442,2.94750807,184.98,184.94,2.8]
[1755788359638,5.80750807,184.98,184.94,2.8]
[1755788361341,2.86,184.97,184.93,136.52]
[1755788361741,2.94750807,184.98,184.93,136.52]
[1755788361942,2.86,184.97,184.93,136.52]
[1755788362439,2.86,184.95,184.93,136.52]
[1755788362947,2.94750807,184.99,184.94,2.8]
[1755788363141,2.83,184.98,184.94,2.8]
[1755788363445,2.83,184.96,184.93,136.52]
[1755788364639,2.83,184.96,184.93,139.32]
[1755788365644,2.83,184.96,184.91,136.48]
[1755788365946,2.83,184.96,184.91,139.28]
[1755788366847,2.83,184.96,184.92,2.8]
[1755788367250,2.94750807,184.99,184.92,2.8]
[1755788367642,2.83,184.94,184.91,136.48]
[1755788370449,2.83,184.94,184.91,139.28]
[1755788370648,2.94750807,184.95,184.91,139.28]
[1755788370849,5.77750807,184.95,184.91,139.28]
[1755788371742,2.94750807,184.95,184.92,2.8]
[1755788371949,2.94750807,184.99,184.93,2.8]
[1755788373452,2.94750807,184.99,184.93,8.2079]
[1755788373945,2.94750807,184.99,184.93,2.8]
[1755788378151,2.94750807,184.97,184.91,136.48]
[1755788378353,5.77750807,184.97,184.91,136.48]
[1755788378752,2.94750807,184.95,184.91,136.48]
[1755788378953,2.94750807,184.92,184.87,2.8]
[1755788379250,2.94750807,184.92,184.88,2.8]
[1755788379444,5.77750807,184.92,184.88,2.8]
[1755788380152,2.94750807,184.89,184.86,139.24]
[1755788380949,2.94750807,184.89,184.87,2.8]
[1755788381450,2.83,184.96,184.87,2.8]
[1755788381748,5.77750807,184.96,184.87,2.8]
[1755788381948,5.77750807,184.96,184.9,5.4088]
[1755788382253,5.77750807,184.99,184.9,2.8]
[1755788382448,2.94750807,184.99,184.92,5.4082]
[1755788382647,2.94750807,184.99,184.83,363.32]
[1755788382648,2.83,184.94,184.82,8.85965709]
[1755788382853,2.94750807,184.87,184.82,2.8]
[1755788383051,2.94750807,184.95,184.77,6.05965709]
[1755788383052,2.94750807,184.84,184.77,137.7]
[1755788383352,2.94750807,184.84,184.82,2.8]
[1755788383553,2.94750807,184.84,184.76,5.4129]
[1755788383752,2.94750807,184.82,184.77,137.7]
[1755788383953,2.94750807,184.82,184.79,2.8]
[1755788385453,2.94750807,184.8,184.77,140.5]
[1755788386357,7.64362586,184.82,184.78,2.8]
[1755788386853,4.81362586,184.79,184.69,2.8]
[1755788389259,4.81362586,184.76,184.7,137.38]
[1755788389659,4.81362586,184.76,184.69,2.8]
[1755788389848,4.81362586,184.76,184.7,137.36]
[1755788390454,4.81362586,184.83,184.71,2.8]
[1755788390658,7.64362586,184.84,184.71,2.8]
[1755788392053,7.64362586,184.81,184.71,2.8]
[1755788393664,7.64362586,184.81,184.71,140.2]
[1755788393959,7.64362586,184.81,184.71,140.18]
[1755788395456,7.64362586,184.81,184.72,2.8]
[1755788396055,4.81362586,184.81,184.72,2.8]
[1755788396866,7.59362586,184.84,184.74,2.8]
[1755788397357,7.59362586,184.89,184.76,2.8]
[1755788397556,2.78,184.89,184.77,2.8]
[1755788397962,2.78,184.89,184.8,2.8]
[1755788398656,2.78,184.89,184.82,2.8]
[1755788399663,2.78,184.86,184.78,137.26]
[1755788400363,363.44,184.97,184.79,2.8]
[1755788400364,4.81362586,184.9,184.79,2.8]
[1755788400564,2.78,184.92,184.79,2.8]
[1755788401558,4.81362586,184.9,184.79,2.8]
[1755788401761,2.78,184.89,184.79,2.8]
[1755788401956,2.78,184.86,184.76,2.8]
[1755788402260,2.78,184.86,184.76,139.9]
[1755788402658,4.81362586,184.84,184.76,139.9]
[1755788402857,2.78,184.83,184.76,139.9]
[1755788403154,7.59362586,184.81,184.76,139.9]
[1755788403557,4.81362586,184.81,184.77,2.8]
[1755788403761,2.78,184.85,184.78,2.8]
[1755788403964,2.78,184.89,184.78,2.8]
[1755788404663,2.78,184.89,184.78,8.2122]
[1755788404866,2.78,184.89,184.78,7.61362586]
[1755788405169,2.78,184.89,184.81,2.8]
[1755788406060,7.59362586,184.89,184.81,2.8]
[1755788406266,2.78,184.89,184.81,2.8]
[1755788406959,2.78,184.89,184.82,5.411]
[1755788407158,2.78,184.89,184.81,2.8]
[1755788407362,7.59362586,184.89,184.81,2.8]
[1755788407961,4.81362586,184.86,184.77,2.8]
[1755788408161,2.78,184.85,184.77,139.8]
[1755788409161,2.78,184.85,184.77,2.8]
[1755788409760,2.78,184.85,184.78,5.4123]
[1755788410159,4.81362586,184.86,184.8,5.4115]
[1755788410369,7.59362586,184.89,184.81,2.8]
[1755788410569,4.03244895,184.88,184.81,2.8]
[1755788410769,4.03244895,184.87,184.81,2.8]
[1755788411068,7.59362586,184.89,184.81,2.8]
[1755788411267,4.0330738,184.88,184.81,2.8]
[1755788411569,4.0330738,184.87,184.81,2.8]
[1755788411870,7.59362586,184.89,184.81,2.8]
[1755788412070,4.03499528,184.88,184.81,8.2113]
[1755788412269,4.03499528,184.87,184.81,2.8]
[1755788412469,7.59362586,184.89,184.81,8.2114]
[1755788412669,4.03576986,184.88,184.81,2.8]
[1755788412871,4.03576986,184.87,184.81,2.8]
[1755788413066,4.81362586,184.89,184.81,2.8]
[1755788413271,6.81690101,184.88,184.81,2.8]
[1755788413571,4.03690101,184.87,184.81,2.8]
[1755788414072,4.81362586,184.86,184.78,2.8]
[1755788414269,4.03690101,184.85,184.77,137.06]
[1755788415163,4.03690101,184.85,184.74,2.8]
[1755788415366,2.78,184.82,184.74,139.76]
[1755788415567,2.78,184.79,184.73,363.68]
[1755788415763,2.78,184.79,184.73,369.0937]
[1755788415964,2.78,184.79,184.73,363.68]
[1755788416171,4.81362586,184.8,184.74,2.8]
[1755788416567,7.59362586,184.83,184.74,2.8]
[1755788416773,7.59362586,184.83,184.76,5.4127]
[1755788416971,2.78,184.83,184.74,2.8]
[1755788417174,7.59362586,184.86,184.78,5.4122]
[1755788417375,4.03940167,184.85,184.77,2.8]
[1755788417578,4.03940167,184.84,184.77,2.8]
[1755788417874,2.78,184.82,184.73,366.48]
[1755788418074,2.78,184.82,184.74,136.92]
[1755788418278,4.03833212,184.81,184.74,136.92]
[1755788418479,2.78,184.82,184.74,142.3333]
[1755788418669,4.04103535,184.81,184.74,136.92]
[1755788418865,2.78,184.82,184.74,136.92]
[1755788419070,4.04103716,184.81,184.74,136.92]
[1755788419273,2.78,184.82,184.74,136.92]
[1755788419473,4.04182117,184.81,184.74,136.92]
[1755788419673,2.78,184.82,184.74,136.92]
[1755788419980,4.81362586,184.8,184.73,503.4]
[1755788420179,6.82277368,184.79,184.73,503.4]
[1755788420376,2.78,184.77,184.64,4.81362586]
[1755788420676,2.78,184.77,184.63,379.87]
[1755788420677,4.04277368,184.76,184.69,2.81]
[1755788421180,4.04277368,184.76,184.69,139.67]
[1755788421379,2.78,184.73,184.69,136.86]
[1755788421575,4.04446718,184.72,184.65,2.81]
[1755788421775,2.78,184.71,184.66,136.84]
[1755788421972,2.78,184.71,184.66,139.65]
[1755788422275,2.78,184.71,184.67,2.81]
[1755788423373,4.81362586,184.74,184.67,2.81]
[1755788423673,4.04793411,184.73,184.67,2.81]
[1755788423881,4.81362586,184.77,184.67,2.81]
[1755788424179,4.04721104,184.76,184.67,2.81]
[1755788424377,4.04721104,184.75,184.67,2.81]
[1755788424678,4.04721104,184.74,184.7,2.78]
[1755788424875,4.81362586,184.77,184.7,2.78]